[Event "Titled Tuesday Blitz December 13 Early 2022"]
[White "Kuderinov, Kirill"]
[Black "Przybylski, Wojciech"]
[WhiteFideId "13701568"]
[BlackFideId "1117599"]
[WhiteElo "2459"]
[BlackElo "2217"]
[Result "1-0"]
[Round "08"]
[TimeControl "180+1"]
[Date "2022.12.14"]
[WhiteClock "0:00:13"]
[BlackClock "0:00:02"]

1. e4 {[%clk 0:02:52]}  e5 {[%clk 0:02:59]} 2. Nf3 {[%clk 0:02:52]}  Nc6 {[%clk 0:03:00]} 3. Bc4 {[%clk 0:02:52]}  Nf6 {[%clk 0:02:59]} 4. d3 {[%clk 0:02:53]}  Be7 {[%clk 0:03:00]} 5. O-O {[%clk 0:02:53]}  O-O {[%clk 0:03:00]} 6. c3 {[%clk 0:02:53]}  d5 {[%clk 0:02:59]} 7. exd5 {[%clk 0:02:51]}  Nxd5 {[%clk 0:03:00]} 8. Re1 {[%clk 0:02:49]}  Bf6 {[%clk 0:02:59]} 9. Nbd2 {[%clk 0:02:48]}  Bg4 {[%clk 0:02:58]} 10. h3 {[%clk 0:02:47]}  Bh5 {[%clk 0:02:57]} 11. Ne4 {[%clk 0:02:48]}  Be7 {[%clk 0:02:53]} 12. Ng3 {[%clk 0:02:46]}  Bg6 {[%clk 0:02:51]} 13. Nxe5 {[%clk 0:02:46]}  Nxe5 {[%clk 0:02:50]} 14. Rxe5 {[%clk 0:02:47]}  Nb6 {[%clk 0:02:50]} 15. Re1 {[%clk 0:02:40]}  Nxc4 {[%clk 0:02:35]} 16. dxc4 {[%clk 0:02:41]}  Bd6 {[%clk 0:02:33]} 17. Qf3 {[%clk 0:02:38]}  Qh4 {[%clk 0:02:28]} 18. b3 {[%clk 0:02:26]}  Rfe8 {[%clk 0:02:23]} 19. Be3 {[%clk 0:02:22]}  Bxg3 {[%clk 0:02:09]} 20. fxg3 {[%clk 0:02:18]}  Qe4 {[%clk 0:02:08]} 21. Qf2 {[%clk 0:02:10]}  a6 {[%clk 0:01:54]} 22. Bd4 {[%clk 0:02:08]}  Qf5 {[%clk 0:01:49]} 23. Qxf5 {[%clk 0:01:50]}  Bxf5 {[%clk 0:01:49]} 24. g4 {[%clk 0:01:44]}  Be4 {[%clk 0:01:48]} 25. Kf2 {[%clk 0:01:43]}  f6 {[%clk 0:01:46]} 26. Rad1 {[%clk 0:01:29]}  Kf7 {[%clk 0:01:41]} 27. Be3 {[%clk 0:01:30]}  Bc6 {[%clk 0:01:39]} 28. Bf4 {[%clk 0:01:28]}  Rxe1 {[%clk 0:01:24]} 29. Rxe1 {[%clk 0:01:29]}  Rc8 {[%clk 0:01:24]} 30. g3 {[%clk 0:01:28]}  Bd7 {[%clk 0:01:23]} 31. Rd1 {[%clk 0:01:26]}  Be6 {[%clk 0:01:22]} 32. c5 {[%clk 0:01:24]}  c6 {[%clk 0:01:08]} 33. c4 {[%clk 0:01:21]}  Rh8 {[%clk 0:01:04]} 34. Kf3 {[%clk 0:01:04]}  h5 {[%clk 0:01:03]} 35. gxh5 {[%clk 0:01:02]}  Rxh5 {[%clk 0:01:01]} 36. Rd8 {[%clk 0:00:49]}  g5 {[%clk 0:00:47]} 37. Bd6 {[%clk 0:00:48]}  Rxh3 {[%clk 0:00:29]} 38. Kg2 {[%clk 0:00:48]}  Rh7 {[%clk 0:00:28]} 39. Rb8 {[%clk 0:00:35]}  Kg6 {[%clk 0:00:28]} 40. Kf3 {[%clk 0:00:34]}  Rf7 {[%clk 0:00:20]} 41. a4 {[%clk 0:00:30]}  Bf5 {[%clk 0:00:19]} 42. a5 {[%clk 0:00:29]}  Bc2 {[%clk 0:00:18]} 43. b4 {[%clk 0:00:30]}  Bd3 {[%clk 0:00:18]} 44. Rg8+ {[%clk 0:00:27]}  Kh7 {[%clk 0:00:18]} 45. Re8 {[%clk 0:00:26]}  Bxc4 {[%clk 0:00:17]} 46. g4 {[%clk 0:00:21]}  Bd5+ {[%clk 0:00:17]} 47. Ke3 {[%clk 0:00:21]}  Kg6 {[%clk 0:00:17]} 48. Kd4 {[%clk 0:00:20]}  Bf3 {[%clk 0:00:15]} 49. Rg8+ {[%clk 0:00:17]}  Kh7 {[%clk 0:00:14]} 50. Re8 {[%clk 0:00:15]}  Bxg4 {[%clk 0:00:15]} 51. Ke3 {[%clk 0:00:16]}  Bf5 {[%clk 0:00:13]} 52. Kf3 {[%clk 0:00:16]}  Kg7 {[%clk 0:00:13]} 53. Kg3 {[%clk 0:00:16]}  Bd3 {[%clk 0:00:13]} 54. Kf3 {[%clk 0:00:17]}  Bc2 {[%clk 0:00:12]} 55. Kg3 {[%clk 0:00:17]}  Bb3 {[%clk 0:00:12]} 56. Kf3 {[%clk 0:00:17]}  Bd1+ {[%clk 0:00:06]} 57. Kg3 {[%clk 0:00:17]}  Bh5 {[%clk 0:00:05]} 58. Kh3 {[%clk 0:00:17]}  Kg6 {[%clk 0:00:05]} 59. Kg3 {[%clk 0:00:16]}  Kf5 {[%clk 0:00:05]} 60. Rh8 {[%clk 0:00:15]}  Bd1 {[%clk 0:00:05]} 61. Re8 {[%clk 0:00:15]}  Bb3 {[%clk 0:00:05]} 62. Kf3 {[%clk 0:00:15]}  Bd5+ {[%clk 0:00:05]} 63. Kg3 {[%clk 0:00:15]}  Rh7 {[%clk 0:00:05]} 64. Rf8 {[%clk 0:00:16]}  Bc4 {[%clk 0:00:05]} 65. Re8 {[%clk 0:00:15]}  Bf1 {[%clk 0:00:05]} 66. Rf8 {[%clk 0:00:15]}  Bd3 {[%clk 0:00:04]} 67. Kf3 {[%clk 0:00:15]}  Bc4 {[%clk 0:00:04]} 68. Kg3 {[%clk 0:00:15]}  Bd5 {[%clk 0:00:04]} 69. Kf2 {[%clk 0:00:15]}  Ke6 {[%clk 0:00:04]} 70. Re8+ {[%clk 0:00:15]}  Kf7 {[%clk 0:00:05]} 71. Rf8+ {[%clk 0:00:15]}  Kg7 {[%clk 0:00:05]} 72. Kg3 {[%clk 0:00:16]}  f5 {[%clk 0:00:04]} 73. Rxf5 {[%clk 0:00:15]}  Kg6 {[%clk 0:00:04]} 74. Rf8 {[%clk 0:00:15]}  Rf7 {[%clk 0:00:05]} 75. Rb8 {[%clk 0:00:15]}  Kf5 {[%clk 0:00:04]} 76. Re8 {[%clk 0:00:14]}  Rg7 {[%clk 0:00:03]} 77. Re5+ {[%clk 0:00:15]}  Kf6 {[%clk 0:00:04]} 78. Re8 {[%clk 0:00:15]}  Rf7 {[%clk 0:00:03]} 79. Be5+ {[%clk 0:00:15]}  Kf5 {[%clk 0:00:04]} 80. Bd6 {[%clk 0:00:14]}  Be6 {[%clk 0:00:04]} 81. Kf3 {[%clk 0:00:13]}  g4+ {[%clk 0:00:04]} 82. Kg3 {[%clk 0:00:13]}  Rh7 {[%clk 0:00:04]} 83. Rf8+ {[%clk 0:00:13]}  Bf7 {[%clk 0:00:05]} 84. Bb8 {[%clk 0:00:11]}  Rh3+ {[%clk 0:00:04]} 85. Kg2 {[%clk 0:00:11]}  Ke6 {[%clk 0:00:04]} 86. Bd6 {[%clk 0:00:11]}  Bg6 {[%clk 0:00:04]} 87. Rg8 {[%clk 0:00:10]}  Be4+ {[%clk 0:00:04]} 88. Kf2 {[%clk 0:00:10]}  Bf3 {[%clk 0:00:04]} 89. Rg7 {[%clk 0:00:10]}  Kd5 {[%clk 0:00:04]} 90. Rxb7 {[%clk 0:00:10]}  Rh6 {[%clk 0:00:02]} 91. Rb6 {[%clk 0:00:11]}  Re6 {[%clk 0:00:02]} 92. Rxa6 {[%clk 0:00:11]}  Re2+ {[%clk 0:00:02]} 93. Kg3 {[%clk 0:00:12]}  Rb2 {[%clk 0:00:02]} 94. Rb6 {[%clk 0:00:12]}  Rg2+ {[%clk 0:00:02]} 95. Kh4 {[%clk 0:00:11]}  Be2 {[%clk 0:00:02]} 96. a6 {[%clk 0:00:10]}  Rg1 {[%clk 0:00:02]} 97. a7 {[%clk 0:00:10]}  Ra1 {[%clk 0:00:02]} 98. Bb8 {[%clk 0:00:11]}  Ke4 {[%clk 0:00:03]} 99. Kg3 {[%clk 0:00:11]}  Rg1+ {[%clk 0:00:02]} 100. Kf2 {[%clk 0:00:11]}  Rh1 {[%clk 0:00:01]} 101. Kxe2 {[%clk 0:00:11]}  Ra1 {[%clk 0:00:01]} 102. Kf2 {[%clk 0:00:11]}  Ra2+ {[%clk 0:00:02]} 103. Kg3 {[%clk 0:00:11]}  Kd5 {[%clk 0:00:02]} 104. Kxg4 {[%clk 0:00:12]}  Ra4 {[%clk 0:00:02]} 105. Kf5 {[%clk 0:00:12]}  Kc4 {[%clk 0:00:03]} 106. Ke6 {[%clk 0:00:12]}  Ra1 {[%clk 0:00:03]} 107. Kd6 {[%clk 0:00:13]}  Rh1 {[%clk 0:00:02]} 108. Kxc6 {[%clk 0:00:13]} 1-0


[Site "https://www.chess.com"]

[Event "Titled Tuesday Blitz December 13 Early 2022"]
[White "La Villa Rivas, Marlon Javier"]
[Black "Dias, Joao Batista"]
[WhiteFideId "3519546"]
[BlackFideId "2108240"]
[WhiteElo "2135"]
[BlackElo "1898"]
[Result "1-0"]
[Round "08"]
[TimeControl "180+1"]
[Date "2022.12.14"]
[WhiteClock "0:00:53"]
[BlackClock "0:01:37"]

1. e4 {[%clk 0:02:48]}  e5 {[%clk 0:02:59]} 2. Nf3 {[%clk 0:02:46]}  Nc6 {[%clk 0:02:59]} 3. Bb5 {[%clk 0:02:45]}  Nf6 {[%clk 0:02:58]} 4. O-O {[%clk 0:02:44]}  d6 {[%clk 0:02:58]} 5. Bxc6+ {[%clk 0:02:43]}  bxc6 {[%clk 0:02:57]} 6. d4 {[%clk 0:02:43]}  exd4 {[%clk 0:02:57]} 7. Qxd4 {[%clk 0:02:43]}  Be7 {[%clk 0:02:56]} 8. Nbd2 {[%clk 0:02:40]}  O-O {[%clk 0:02:56]} 9. Nc4 {[%clk 0:02:40]}  Be6 {[%clk 0:02:54]} 10. Ne3 {[%clk 0:02:39]}  Qd7 {[%clk 0:02:53]} 11. e5 {[%clk 0:02:38]}  Ne8 {[%clk 0:02:49]} 12. b3 {[%clk 0:02:32]}  c5 {[%clk 0:02:49]} 13. Qf4 {[%clk 0:02:30]}  g6 {[%clk 0:02:46]} 14. Bb2 {[%clk 0:02:28]}  Ng7 {[%clk 0:02:46]} 15. exd6 {[%clk 0:02:26]}  cxd6 {[%clk 0:02:45]} 16. Rad1 {[%clk 0:02:23]}  f6 {[%clk 0:02:29]} 17. Nd5 {[%clk 0:02:17]}  Bxd5 {[%clk 0:02:28]} 18. Rxd5 {[%clk 0:02:18]}  Qe6 {[%clk 0:02:22]} 19. c4 {[%clk 0:02:15]}  Rad8 {[%clk 0:02:14]} 20. Re1 {[%clk 0:02:14]}  Qf7 {[%clk 0:02:13]} 21. Nd2 {[%clk 0:02:08]}  Rfe8 {[%clk 0:02:08]} 22. Ne4 {[%clk 0:02:08]}  Nh5 {[%clk 0:02:07]} 23. Rxh5 {[%clk 0:01:50]}  gxh5 {[%clk 0:02:06]} 24. Bxf6 {[%clk 0:01:51]}  Bxf6 {[%clk 0:02:05]} 25. Nxf6+ {[%clk 0:01:50]}  Kf8 {[%clk 0:02:02]} 26. Rxe8+ {[%clk 0:01:37]}  Rxe8 {[%clk 0:02:00]} 27. Qh6+ {[%clk 0:01:26]}  Ke7 {[%clk 0:01:55]} 28. Nxe8 {[%clk 0:01:25]}  Kxe8 {[%clk 0:01:55]} 29. Qxd6 {[%clk 0:01:24]}  Qf5 {[%clk 0:01:52]} 30. h3 {[%clk 0:01:17]}  Qb1+ {[%clk 0:01:49]} 31. Kh2 {[%clk 0:01:17]}  Qxa2 {[%clk 0:01:49]} 32. Qe5+ {[%clk 0:01:13]}  Kd7 {[%clk 0:01:48]} 33. Qd5+ {[%clk 0:01:13]}  Ke8 {[%clk 0:01:48]} 34. Qxh5+ {[%clk 0:01:12]}  Kd7 {[%clk 0:01:47]} 35. Qxh7+ {[%clk 0:01:12]}  Kc6 {[%clk 0:01:47]} 36. Qg6+ {[%clk 0:01:10]}  Kc7 {[%clk 0:01:45]} 37. Qf7+ {[%clk 0:01:10]}  Kb6 {[%clk 0:01:45]} 38. Qe6+ {[%clk 0:01:09]}  Kc7 {[%clk 0:01:45]} 39. Qe7+ {[%clk 0:01:09]}  Kc6 {[%clk 0:01:45]} 40. Qe8+ {[%clk 0:01:07]}  Kc7 {[%clk 0:01:44]} 41. Qb5 {[%clk 0:01:07]}  Qxf2 {[%clk 0:01:42]} 42. Qa5+ {[%clk 0:01:06]}  Kc6 {[%clk 0:01:41]} 43. Qa6+ {[%clk 0:01:04]}  Kd7 {[%clk 0:01:37]} 44. Qxa7+ {[%clk 0:01:05]}  Ke6 {[%clk 0:01:37]} 45. Qb6+ {[%clk 0:01:03]}  Kf5 {[%clk 0:01:37]} 46. Qh6 {[%clk 0:00:58]}  Ke4 {[%clk 0:01:35]} 47. Qe6+ {[%clk 0:00:55]}  Kd3 {[%clk 0:01:35]} 48. Qg4 {[%clk 0:00:48]}  Kc3 {[%clk 0:01:34]} 49. Qg3+ {[%clk 0:00:48]}  Qxg3+ {[%clk 0:01:33]} 50. Kxg3 {[%clk 0:00:49]}  Kxb3 {[%clk 0:01:34]} 51. h4 {[%clk 0:00:50]}  Kxc4 {[%clk 0:01:34]} 52. h5 {[%clk 0:00:51]}  Kd5 {[%clk 0:01:35]} 53. h6 {[%clk 0:00:52]}  c4 {[%clk 0:01:35]} 54. h7 {[%clk 0:00:52]}  c3 {[%clk 0:01:36]} 55. h8=Q {[%clk 0:00:53]}  c2 {[%clk 0:01:37]} 56. Qc3 {[%clk 0:00:53]} 1-0


[Site "https://www.chess.com"]

[Event "Titled Tuesday Blitz December 13 Early 2022"]
[White "Lenderman, Aleksandr"]
[Black "Morefield, Jason"]
[WhiteFideId "2021285"]
[BlackFideId "30920825"]
[WhiteElo "2607"]
[BlackElo "2171"]
[Result "1-0"]
[Round "08"]
[TimeControl "180+1"]
[Date "2022.12.13"]
[WhiteClock "0:02:15"]
[BlackClock "0:01:03"]

1. e4 {[%clk 0:03:00]}  c5 {[%clk 0:02:57]} 2. d4 {[%clk 0:03:00]}  cxd4 {[%clk 0:02:56]} 3. c3 {[%clk 0:03:00]}  Nf6 {[%clk 0:02:57]} 4. e5 {[%clk 0:03:00]}  Nd5 {[%clk 0:02:57]} 5. Nf3 {[%clk 0:03:01]}  Nc6 {[%clk 0:02:49]} 6. cxd4 {[%clk 0:02:58]}  d6 {[%clk 0:02:49]} 7. Bc4 {[%clk 0:02:57]}  dxe5 {[%clk 0:02:50]} 8. dxe5 {[%clk 0:02:56]}  Be6 {[%clk 0:02:50]} 9. O-O {[%clk 0:02:54]}  g6 {[%clk 0:02:49]} 10. Qe2 {[%clk 0:02:54]}  Qa5 {[%clk 0:02:46]} 11. Bd2 {[%clk 0:02:52]}  Qb6 {[%clk 0:02:40]} 12. Nc3 {[%clk 0:02:52]}  Nxc3 {[%clk 0:02:38]} 13. Bxc3 {[%clk 0:02:53]}  Bxc4 {[%clk 0:02:38]} 14. Qxc4 {[%clk 0:02:53]}  e6 {[%clk 0:02:33]} 15. Ng5 {[%clk 0:02:51]}  Bg7 {[%clk 0:02:27]} 16. Rae1 {[%clk 0:02:40]}  O-O {[%clk 0:02:23]} 17. Qh4 {[%clk 0:02:40]}  h6 {[%clk 0:02:21]} 18. Ne4 {[%clk 0:02:40]}  Qc7 {[%clk 0:01:36]} 19. Nf6+ {[%clk 0:02:39]}  Kh8 {[%clk 0:01:36]} 20. Bd2 {[%clk 0:02:35]}  h5 {[%clk 0:01:23]} 21. Re4 {[%clk 0:02:26]}  Ne7 {[%clk 0:01:21]} 22. g4 {[%clk 0:02:22]}  Rad8 {[%clk 0:01:13]} 23. gxh5 {[%clk 0:02:20]}  Nf5 {[%clk 0:01:10]} 24. hxg6+ {[%clk 0:02:16]}  Nxh4 {[%clk 0:01:10]} 25. Rxh4+ {[%clk 0:02:17]}  Bh6 {[%clk 0:01:11]} 26. Bxh6 {[%clk 0:02:17]}  Rd4 {[%clk 0:01:03]} 27. g7# {[%clk 0:02:15]} 1-0


[Site "https://www.chess.com"]

[Event "Titled Tuesday Blitz December 13 Early 2022"]
[White "Liu, Casper"]
[Black "Jaskolka, Tomasz"]
[WhiteFideId "1454153"]
[BlackFideId "1170791"]
[WhiteElo "2217"]
[BlackElo "2126"]
[Result "1-0"]
[Round "08"]
[TimeControl "180+1"]
[Date "2022.12.14"]
[WhiteClock "0:00:33"]
[BlackClock "0:00:30"]

1. b3 {[%clk 0:02:22]}  d5 {[%clk 0:02:58]} 2. g3 {[%clk 0:02:21]}  e5 {[%clk 0:02:55]} 3. Bb2 {[%clk 0:02:21]}  Nc6 {[%clk 0:02:55]} 4. Bg2 {[%clk 0:02:21]}  Nf6 {[%clk 0:02:55]} 5. d3 {[%clk 0:02:21]}  Bf5 {[%clk 0:02:52]} 6. Nf3 {[%clk 0:02:22]}  e4 {[%clk 0:02:52]} 7. Nfd2 {[%clk 0:02:16]}  exd3 {[%clk 0:02:46]} 8. cxd3 {[%clk 0:02:13]}  Bc5 {[%clk 0:02:43]} 9. O-O {[%clk 0:02:14]}  O-O {[%clk 0:02:42]} 10. Nc3 {[%clk 0:02:08]}  Re8 {[%clk 0:02:40]} 11. Nxd5 {[%clk 0:02:06]}  Nxd5 {[%clk 0:02:37]} 12. e4 {[%clk 0:02:05]}  Ndb4 {[%clk 0:02:37]} 13. exf5 {[%clk 0:02:00]}  Nxd3 {[%clk 0:02:37]} 14. Bc3 {[%clk 0:01:55]}  Qe7 {[%clk 0:02:00]} 15. Qg4 {[%clk 0:01:54]}  f6 {[%clk 0:01:41]} 16. Qc4+ {[%clk 0:01:53]}  Kh8 {[%clk 0:01:36]} 17. Qxd3 {[%clk 0:01:53]}  Rad8 {[%clk 0:01:35]} 18. Qc2 {[%clk 0:01:52]}  Qe2 {[%clk 0:01:31]} 19. Rac1 {[%clk 0:01:31]}  Nd4 {[%clk 0:01:09]} 20. Qb2 {[%clk 0:00:58]}  Bb6 {[%clk 0:01:00]} 21. Nc4 {[%clk 0:00:56]}  Nf3+ {[%clk 0:01:00]} 22. Kh1 {[%clk 0:00:54]}  Qe4 {[%clk 0:00:52]} 23. Nd2 {[%clk 0:00:51]}  Rxd2 {[%clk 0:00:34]} 24. Bxd2 {[%clk 0:00:51]}  Qe2 {[%clk 0:00:35]} 25. Bc3 {[%clk 0:00:38]}  Qe4 {[%clk 0:00:33]} 26. Rce1 {[%clk 0:00:32]}  Qc6 {[%clk 0:00:28]} 27. Rxe8+ {[%clk 0:00:31]}  Qxe8 {[%clk 0:00:29]} 28. Bxf3 {[%clk 0:00:32]}  h6 {[%clk 0:00:30]} 29. Qe2 {[%clk 0:00:32]}  Qd7 {[%clk 0:00:30]} 30. Rd1 {[%clk 0:00:32]}  Qxf5 {[%clk 0:00:29]} 31. Rd8+ {[%clk 0:00:32]}  Kh7 {[%clk 0:00:28]} 32. Be4 {[%clk 0:00:33]}  g6 {[%clk 0:00:29]} 33. Bxf5 {[%clk 0:00:33]}  gxf5 {[%clk 0:00:30]} 34. Qe8 {[%clk 0:00:33]}  Kg7 {[%clk 0:00:30]} 35. Qg8# {[%clk 0:00:33]} 1-0


[Site "https://www.chess.com"]

[Event "Titled Tuesday Blitz December 13 Early 2022"]
[White "Ljukin, Sergei"]
[Black "Hrabinska, Myroslava"]
[WhiteFideId "14102200"]
[BlackFideId "14109190"]
[WhiteElo "2312"]
[BlackElo "2171"]
[Result "0-1"]
[Round "08"]
[TimeControl "180+1"]
[Date "2022.12.14"]
[WhiteClock "0:00:13"]
[BlackClock "0:00:45"]

1. e4 {[%clk 0:02:57]}  c5 {[%clk 0:02:55]} 2. Nf3 {[%clk 0:02:57]}  e6 {[%clk 0:02:52]} 3. d4 {[%clk 0:02:57]}  cxd4 {[%clk 0:02:51]} 4. Nxd4 {[%clk 0:02:57]}  a6 {[%clk 0:02:52]} 5. Bd3 {[%clk 0:02:56]}  Nc6 {[%clk 0:02:47]} 6. Nxc6 {[%clk 0:02:54]}  dxc6 {[%clk 0:02:47]} 7. O-O {[%clk 0:02:48]}  e5 {[%clk 0:02:46]} 8. Nd2 {[%clk 0:02:47]}  Nf6 {[%clk 0:02:43]} 9. Nc4 {[%clk 0:02:45]}  Qc7 {[%clk 0:02:37]} 10. Bd2 {[%clk 0:02:35]}  b5 {[%clk 0:02:25]} 11. Ba5 {[%clk 0:02:33]}  Qe7 {[%clk 0:02:09]} 12. Nb6 {[%clk 0:02:27]}  Rb8 {[%clk 0:02:09]} 13. Nxc8 {[%clk 0:02:20]}  Rxc8 {[%clk 0:02:10]} 14. Qf3 {[%clk 0:02:07]}  Qe6 {[%clk 0:02:02]} 15. a4 {[%clk 0:01:57]}  Bc5 {[%clk 0:02:00]} 16. Rfc1 {[%clk 0:01:21]}  Ng4 {[%clk 0:01:38]} 17. Be1 {[%clk 0:01:17]}  h5 {[%clk 0:01:32]} 18. axb5 {[%clk 0:01:02]}  axb5 {[%clk 0:01:31]} 19. Ra6 {[%clk 0:01:02]}  Rh6 {[%clk 0:01:16]} 20. Bxb5 {[%clk 0:00:41]}  Rf6 {[%clk 0:01:14]} 21. Qc3 {[%clk 0:00:40]}  Bd4 {[%clk 0:00:56]} 22. Qd3 {[%clk 0:00:20]}  Nxf2 {[%clk 0:00:52]} 23. Bxf2 {[%clk 0:00:20]}  Rxf2 {[%clk 0:00:52]} 24. Kh1 {[%clk 0:00:20]}  Qg4 {[%clk 0:00:48]} 25. Rg1 {[%clk 0:00:13]}  cxb5 {[%clk 0:00:45]} 26. Qxb5+ {[%clk 0:00:13]}  Kf8 {[%clk 0:00:45]} 0-1


[Site "https://www.chess.com"]

[Event "Titled Tuesday Blitz December 13 Early 2022"]
[White "Madaminov, Mukhiddin"]
[Black "Demin, Vladimir"]
[WhiteFideId "14210703"]
[BlackFideId "4167457"]
[WhiteElo "2333"]
[BlackElo "2609"]
[Result "0-1"]
[Round "08"]
[TimeControl "180+1"]
[Date "2022.12.13"]
[WhiteClock "0:00:02"]
[BlackClock "0:00:15"]

1. d4 {[%clk 0:03:00]}  d5 {[%clk 0:02:51]} 2. Nc3 {[%clk 0:03:00]}  c6 {[%clk 0:02:49]} 3. Bf4 {[%clk 0:03:00]}  Nf6 {[%clk 0:02:46]} 4. e3 {[%clk 0:03:01]}  Bf5 {[%clk 0:02:43]} 5. f3 {[%clk 0:03:01]}  h5 {[%clk 0:02:41]} 6. Bd3 {[%clk 0:03:00]}  e6 {[%clk 0:02:40]} 7. e4 {[%clk 0:02:52]}  dxe4 {[%clk 0:02:39]} 8. fxe4 {[%clk 0:02:52]}  Bg4 {[%clk 0:02:39]} 9. Nge2 {[%clk 0:02:53]}  Nbd7 {[%clk 0:02:29]} 10. h3 {[%clk 0:02:48]}  Bxe2 {[%clk 0:02:23]} 11. Nxe2 {[%clk 0:02:49]}  c5 {[%clk 0:02:22]} 12. c3 {[%clk 0:02:45]}  Qb6 {[%clk 0:02:03]} 13. Qb3 {[%clk 0:02:41]}  cxd4 {[%clk 0:02:01]} 14. Qxb6 {[%clk 0:02:33]}  axb6 {[%clk 0:01:59]} 15. cxd4 {[%clk 0:02:34]}  Bb4+ {[%clk 0:01:58]} 16. Kf2 {[%clk 0:02:23]}  O-O {[%clk 0:01:53]} 17. a3 {[%clk 0:02:21]}  Be7 {[%clk 0:01:51]} 18. Nc3 {[%clk 0:02:20]}  Rac8 {[%clk 0:01:48]} 19. e5 {[%clk 0:02:17]}  Nd5 {[%clk 0:01:46]} 20. Nxd5 {[%clk 0:02:15]}  exd5 {[%clk 0:01:47]} 21. Bf5 {[%clk 0:02:15]}  Rfd8 {[%clk 0:01:37]} 22. Rhc1 {[%clk 0:02:14]}  Rc6 {[%clk 0:01:33]} 23. e6 {[%clk 0:01:22]}  Nf6 {[%clk 0:01:22]} 24. exf7+ {[%clk 0:01:14]}  Kxf7 {[%clk 0:01:23]} 25. Rxc6 {[%clk 0:01:13]}  bxc6 {[%clk 0:01:21]} 26. Bc7 {[%clk 0:01:13]}  Ra8 {[%clk 0:01:15]} 27. Rc1 {[%clk 0:01:09]}  c5 {[%clk 0:01:09]} 28. Bxb6 {[%clk 0:01:10]}  c4 {[%clk 0:01:09]} 29. Rc2 {[%clk 0:01:09]}  Bd6 {[%clk 0:01:07]} 30. Re2 {[%clk 0:01:05]}  Rb8 {[%clk 0:01:03]} 31. Ba5 {[%clk 0:01:05]}  Rb3 {[%clk 0:00:51]} 32. Ke1 {[%clk 0:01:02]}  g6 {[%clk 0:00:47]} 33. Bc2 {[%clk 0:00:46]}  Rb8 {[%clk 0:00:41]} 34. Bc3 {[%clk 0:00:42]}  Bg3+ {[%clk 0:00:40]} 35. Kd1 {[%clk 0:00:42]}  h4 {[%clk 0:00:40]} 36. a4 {[%clk 0:00:31]}  g5 {[%clk 0:00:36]} 37. Bf5 {[%clk 0:00:29]}  Ra8 {[%clk 0:00:33]} 38. a5 {[%clk 0:00:27]}  Bc7 {[%clk 0:00:30]} 39. Be6+ {[%clk 0:00:16]}  Kg7 {[%clk 0:00:29]} 40. Bd2 {[%clk 0:00:12]}  Kg6 {[%clk 0:00:27]} 41. Bc1 {[%clk 0:00:02]}  Rxa5 {[%clk 0:00:15]} 0-1


[Site "https://www.chess.com"]

[Event "Titled Tuesday Blitz December 13 Early 2022"]
[White "Manelyuk, Daniil"]
[Black "Ibarra Jerez, Jose Carlos"]
[WhiteFideId "44173920"]
[BlackFideId "2226332"]
[WhiteElo "2210"]
[BlackElo "2638"]
[Result "0-1"]
[Round "08"]
[TimeControl "180+1"]
[Date "2022.12.14"]
[WhiteClock "0:00:22"]
[BlackClock "0:01:21"]

1. e4 {[%clk 0:03:00]}  c5 {[%clk 0:02:57]} 2. Nf3 {[%clk 0:02:58]}  Nc6 {[%clk 0:02:57]} 3. d4 {[%clk 0:02:58]}  cxd4 {[%clk 0:02:57]} 4. Nxd4 {[%clk 0:02:59]}  e5 {[%clk 0:02:56]} 5. Nb5 {[%clk 0:02:59]}  a6 {[%clk 0:02:57]} 6. Nd6+ {[%clk 0:02:58]}  Bxd6 {[%clk 0:02:57]} 7. Qxd6 {[%clk 0:02:59]}  Qe7 {[%clk 0:02:58]} 8. Qd1 {[%clk 0:02:58]}  Nf6 {[%clk 0:02:58]} 9. Nc3 {[%clk 0:02:57]}  d6 {[%clk 0:02:59]} 10. Bg5 {[%clk 0:02:57]}  Be6 {[%clk 0:02:59]} 11. Be2 {[%clk 0:02:53]}  Nd4 {[%clk 0:02:58]} 12. Be3 {[%clk 0:02:51]}  Nxe2 {[%clk 0:02:57]} 13. Qxe2 {[%clk 0:02:51]}  Rc8 {[%clk 0:02:57]} 14. f3 {[%clk 0:02:47]}  b5 {[%clk 0:02:55]} 15. a3 {[%clk 0:02:46]}  O-O {[%clk 0:02:52]} 16. Kf2 {[%clk 0:02:41]}  d5 {[%clk 0:02:43]} 17. exd5 {[%clk 0:02:36]}  Nxd5 {[%clk 0:02:44]} 18. Nxd5 {[%clk 0:02:37]}  Bxd5 {[%clk 0:02:45]} 19. Rhd1 {[%clk 0:02:35]}  Bb7 {[%clk 0:02:33]} 20. Kg1 {[%clk 0:02:32]}  f5 {[%clk 0:02:28]} 21. c3 {[%clk 0:02:20]}  Rce8 {[%clk 0:02:19]} 22. b4 {[%clk 0:02:17]}  Rf7 {[%clk 0:02:12]} 23. Bc5 {[%clk 0:02:17]}  Qg5 {[%clk 0:02:10]} 24. Rd6 {[%clk 0:01:59]}  e4 {[%clk 0:02:05]} 25. Rad1 {[%clk 0:01:58]}  h6 {[%clk 0:02:02]} 26. Rd7 {[%clk 0:01:50]}  Rxd7 {[%clk 0:01:56]} 27. Rxd7 {[%clk 0:01:51]}  Bc6 {[%clk 0:01:56]} 28. f4 {[%clk 0:01:08]}  Qxf4 {[%clk 0:01:53]} 29. Rd6 {[%clk 0:00:58]}  Ba8 {[%clk 0:01:46]} 30. Qa2+ {[%clk 0:00:50]}  Kh8 {[%clk 0:01:38]} 31. Qf7 {[%clk 0:00:43]}  Qc1+ {[%clk 0:01:36]} 32. Kf2 {[%clk 0:00:43]}  e3+ {[%clk 0:01:23]} 33. Kg3 {[%clk 0:00:27]}  Qe1+ {[%clk 0:01:23]} 34. Kh3 {[%clk 0:00:20]}  Bxg2+ {[%clk 0:01:22]} 35. Kxg2 {[%clk 0:00:21]}  Qf2+ {[%clk 0:01:21]} 36. Kh3 {[%clk 0:00:21]}  Qf3+ {[%clk 0:01:21]} 37. Kh4 {[%clk 0:00:22]}  Qg4# {[%clk 0:01:21]} 0-1


[Site "https://www.chess.com"]

[Event "Titled Tuesday Blitz December 13 Early 2022"]
[White "Martinez Ramirez, Lennis"]
[Black "Jiganchine, Roman"]
[WhiteFideId "3509079"]
[BlackFideId "2603667"]
[WhiteElo "2439"]
[BlackElo "2366"]
[Result "1-0"]
[Round "08"]
[TimeControl "180+1"]
[Date "2022.12.14"]
[WhiteClock "0:00:53"]
[BlackClock "0:00:01"]

1. c4 {[%clk 0:03:00]}  e6 {[%clk 0:02:58]} 2. d4 {[%clk 0:02:57]}  d5 {[%clk 0:02:58]} 3. Nf3 {[%clk 0:02:58]}  Nf6 {[%clk 0:02:57]} 4. e3 {[%clk 0:02:58]}  c5 {[%clk 0:02:55]} 5. Nc3 {[%clk 0:02:59]}  a6 {[%clk 0:02:54]} 6. cxd5 {[%clk 0:02:58]}  exd5 {[%clk 0:02:53]} 7. a3 {[%clk 0:02:58]}  Nc6 {[%clk 0:02:51]} 8. dxc5 {[%clk 0:02:57]}  Bxc5 {[%clk 0:02:50]} 9. b4 {[%clk 0:02:58]}  Ba7 {[%clk 0:02:45]} 10. b5 {[%clk 0:02:56]}  axb5 {[%clk 0:02:39]} 11. Nxb5 {[%clk 0:02:57]}  Bb6 {[%clk 0:02:37]} 12. Be2 {[%clk 0:02:57]}  O-O {[%clk 0:02:36]} 13. h3 {[%clk 0:02:54]}  Ne4 {[%clk 0:02:33]} 14. O-O {[%clk 0:02:52]}  Be6 {[%clk 0:02:32]} 15. Bb2 {[%clk 0:02:51]}  Re8 {[%clk 0:02:27]} 16. Nfd4 {[%clk 0:02:48]}  Bxh3 {[%clk 0:02:03]} 17. gxh3 {[%clk 0:02:44]}  Qg5+ {[%clk 0:01:56]} 18. Kh2 {[%clk 0:02:23]}  Qh4 {[%clk 0:01:55]} 19. Qe1 {[%clk 0:02:05]}  Ng5 {[%clk 0:01:41]} 20. Bg4 {[%clk 0:02:03]}  Ne5 {[%clk 0:01:28]} 21. Qe2 {[%clk 0:01:31]}  g6 {[%clk 0:00:49]} 22. Rg1 {[%clk 0:01:27]}  Nc4 {[%clk 0:00:44]} 23. Rg3 {[%clk 0:01:22]}  Ne4 {[%clk 0:00:38]} 24. Rg2 {[%clk 0:01:11]}  h5 {[%clk 0:00:32]} 25. Nf3 {[%clk 0:01:09]}  Qe7 {[%clk 0:00:24]} 26. Bxh5 {[%clk 0:01:09]}  Nxb2 {[%clk 0:00:19]} 27. Qxb2 {[%clk 0:01:08]}  d4 {[%clk 0:00:18]} 28. Nbxd4 {[%clk 0:01:00]}  Bc7+ {[%clk 0:00:16]} 29. Kg1 {[%clk 0:01:00]}  Kh7 {[%clk 0:00:15]} 30. Nf5 {[%clk 0:01:00]}  Qf6 {[%clk 0:00:10]} 31. Ng5+ {[%clk 0:00:56]}  Kg8 {[%clk 0:00:05]} 32. Nh6+ {[%clk 0:00:56]}  Kf8 {[%clk 0:00:02]} 33. Nh7+ {[%clk 0:00:55]}  Kg7 {[%clk 0:00:01]} 34. Nxf6 {[%clk 0:00:56]}  Nxf6 {[%clk 0:00:01]} 35. Nf5+ {[%clk 0:00:53]} 1-0


[Site "https://www.chess.com"]